bitfinex/quotes_BTCUSD_20250208
["timestamp","ask_amount","ask_price","bid_price","bid_amount"]
[1739050229031,0.15537078,96531.0,96530.0,0.0011067]
[1739050229417,0.15637078,96531.0,96530.0,0.0011067]
[1739050230448,0.15637078,96531.0,96530.0,0.0001067]
[1739050230696,0.15737078,96531.0,96530.0,0.0001067]
[1739050231117,0.16137078,96531.0,96530.0,0.0001067]
[1739050231493,0.15737078,96531.0,96530.0,0.0001067]
[1739050231818,0.16737078,96531.0,96530.0,0.0001067]
[1739050232639,0.16159486,96531.0,96530.0,0.0001067]
[1739050232969,0.16759486,96531.0,96530.0,0.0001067]
[1739050233393,0.16159486,96531.0,96530.0,0.0001067]
[1739050233790,0.16559486,96531.0,96530.0,0.0001067]
[1739050234225,0.15959486,96531.0,96530.0,0.0001067]
[1739050234422,0.16959486,96531.0,96530.0,0.0001067]
[1739050235231,0.23495502,96531.0,96530.0,0.0001067]
[1739050235435,0.25544865,96531.0,96530.0,0.0001067]
[1739050237674,0.34008849,96531.0,96530.0,0.0001067]
[1739050239682,0.15022408,96532.0,96530.0,0.0001067]
[1739050239930,0.15539,96531.0,96530.0,0.0001067]
[1739050240478,0.17590875,96531.0,96530.0,0.0001067]
[1739050241146,0.17590875,96531.0,96530.0,0.0011067]
[1739050241502,0.17590875,96531.0,96530.0,0.0001067]
[1739050241703,0.17990875,96531.0,96530.0,0.0001067]
[1739050241881,0.18590875,96531.0,96530.0,0.0001067]
[1739050245893,0.18613283,96531.0,96530.0,0.0001067]
[1739050248494,0.31561408,96531.0,96530.0,0.0001067]
[1739050252773,0.32305408,96531.0,96530.0,0.0001067]
[1739050253017,0.31305408,96531.0,96530.0,0.0001067]
[1739050253211,0.31261408,96531.0,96530.0,0.0001067]
[1739050253559,0.32005408,96531.0,96530.0,0.0001067]
[1739050253747,0.31505408,96531.0,96530.0,0.0001067]
[1739050254155,0.31905408,96531.0,96530.0,0.0001067]
[1739050254518,0.31305408,96531.0,96530.0,0.0001067]
[1739050254922,0.31705408,96531.0,96530.0,0.0001067]
[1739050256088,0.31905408,96531.0,96530.0,0.0001067]
[1739050257213,0.31161408,96531.0,96530.0,0.0001067]
[1739050257352,0.31905408,96531.0,96530.0,0.09176871]
[1739050258001,0.31905408,96531.0,96530.0,0.0834067]
[1739050258002,0.16366408,96531.0,96530.0,0.0834067]
[1739050258226,0.00966408,96531.0,96530.0,0.0834067]
[1739050258876,0.00766408,96531.0,96530.0,0.0834067]
[1739050259295,0.00222408,96531.0,96530.0,0.0834067]
[1739050259536,0.00222408,96531.0,96530.0,0.13264861]
[1739050259537,0.00422408,96531.0,96530.0,0.13264861]
[1739050260021,0.00022408,96531.0,96530.0,0.13364861]
[1739050260533,0.00022408,96531.0,96530.0,0.0844067]
[1739050262273,0.15,96538.0,96530.0,0.0844067]
[1739050262491,0.02055008,96536.0,96530.0,0.0844067]
[1739050262687,0.15538,96537.0,96530.0,0.0844067]
[1739050262885,0.15,96538.0,96530.0,0.0844067]
[1739050263250,0.155381,96537.0,96530.0,0.0834067]
[1739050263450,0.155382,96537.0,96530.0,0.0834067]
[1739050264338,0.155382,96536.0,96530.0,0.0834067]
[1739050266724,0.158382,96536.0,96530.0,0.0834067]
[1739050269446,0.15860608,96536.0,96530.0,0.0834067]
[1739050272188,0.15860708,96536.0,96530.0,0.0834067]
[1739050272403,0.00322408,96536.0,96530.0,0.0834067]
[1739050273051,0.15860608,96536.0,96530.0,0.0834067]
[1739050273408,0.155384,96535.0,96530.0,0.0834067]
[1739050274963,0.003,96535.0,96530.0,0.0834067]
[1739050275096,0.003,96535.0,96532.0,0.155388]
[1739050275324,0.003,96535.0,96533.0,0.078]
[1739050276127,0.00022408,96536.0,96533.0,0.078]
[1739050276327,0.003,96535.0,96533.0,0.078]
[1739050276617,0.002,96535.0,96533.0,0.078]
[1739050276818,0.00022408,96536.0,96533.0,0.078]
[1739050277014,0.00022408,96536.0,96533.0,0.083]
[1739050277159,0.00022408,96536.0,96533.0,0.088]
[1739050277783,0.00022408,96536.0,96533.0,0.078]
[1739050278213,0.00022408,96536.0,96533.0,0.082]
[1739050279097,0.00022408,96536.0,96533.0,0.087]
[1739050280427,0.00022408,96536.0,96533.0,0.083]
[1739050280847,0.00022408,96536.0,96533.0,0.087]
[1739050281209,0.00022408,96536.0,96533.0,0.086]
[1739050281617,0.00022408,96536.0,96533.0,0.0861067]
[1739050282519,0.00022408,96536.0,96533.0,0.0901067]
[1739050283048,0.00022408,96536.0,96533.0,0.0861067]
[1739050283243,0.00022408,96536.0,96533.0,0.0911067]
[1739050284833,0.00022408,96536.0,96534.0,0.02011622]
[1739050285648,0.00022408,96536.0,96535.0,0.0826]
[1739050286102,0.00022408,96536.0,96535.0,0.15161472]
[1739050286708,0.00022408,96536.0,96535.0,0.40950237]
[1739050286885,0.00022408,96536.0,96535.0,0.41350237]
[1739050287466,0.00022408,96536.0,96535.0,0.41850237]
[1739050295080,0.00022408,96536.0,96535.0,0.41860907]
[1739050298991,0.07570826,96550.0,96536.0,0.0826]
[1739050299175,0.07570826,96550.0,96538.0,0.0826]
[1739050299406,0.07570826,96550.0,96539.0,0.12261235]
[1739050300397,0.07770826,96550.0,96539.0,0.12261235]
[1739050300624,0.07870826,96550.0,96539.0,0.12261235]
[1739050301459,0.002,96550.0,96539.0,0.12261235]
[1739050301643,0.15,96567.0,96539.0,0.12261235]
[1739050301782,0.001,96550.0,96539.0,0.2061399]
[1739050301981,0.002,96550.0,96539.0,0.2061399]
[1739050302498,0.155353,96555.0,96539.0,0.2061399]
[1739050302696,0.155353,96554.0,96540.0,0.0765]
[1739050302910,0.155353,96554.0,96540.0,0.17900365]
[1739050303122,0.155353,96554.0,96541.0,0.02010569]
[1739050304583,0.155353,96554.0,96541.0,0.02110569]
[1739050306353,0.15,96559.0,96541.0,0.02110569]
[1739050306480,0.357128,96559.0,96541.0,0.02110569]
[1739050306709,0.15,96556.0,96541.0,0.02110569]
[1739050307272,0.15,96556.0,96541.0,0.02010569]
[1739050307410,0.15022408,96556.0,96541.0,0.02010569]
[1739050309063,0.15657408,96556.0,96541.0,0.02010569]
[1739050311029,0.15122408,96556.0,96541.0,0.02010569]
[1739050311253,0.15657508,96556.0,96541.0,0.02010569]
[1739050313629,0.15,96552.0,96541.0,0.02010569]
[1739050313992,0.15,96552.0,96540.0,0.17900365]
[1739050314179,0.15,96552.0,96541.0,0.02017498]
[1739050314379,0.15,96552.0,96540.0,0.17900365]
[1739050314581,0.15,96552.0,96541.0,0.02017498]
[1739050314795,0.07570826,96551.0,96541.0,0.002]
[1739050315001,0.15,96552.0,96541.0,0.002]
[1739050315202,0.07570826,96551.0,96541.0,0.002]
[1739050315453,0.15,96552.0,96541.0,0.002]
[1739050315690,0.15,96552.0,96541.0,0.001]
[1739050315888,0.15,96552.0,96541.0,0.003]
[1739050316646,0.15,96552.0,96541.0,0.002]
[1739050316807,0.15,96552.0,96541.0,0.004]
[1739050317175,0.15,96552.0,96541.0,0.002]
[1739050317613,0.15,96552.0,96541.0,0.004]
[1739050317970,0.155358,96552.0,96541.0,0.004]
[1739050318187,0.07570826,96551.0,96541.0,0.004]
[1739050319065,0.07570826,96551.0,96541.0,0.003]
[1739050319473,0.07570826,96551.0,96541.0,0.001]
[1739050319697,0.07570826,96551.0,96541.0,0.0001067]
[1739050319895,0.15,96550.0,96541.0,0.0021067]
[1739050321028,0.155363,96548.0,96541.0,0.0021067]
[1739050321260,0.155368,96545.0,96542.0,0.01598224]
[1739050321469,0.20715,96548.0,96541.0,0.0021067]
[1739050321661,0.20715,96548.0,96541.0,0.0041067]
[1739050321662,0.15537,96544.0,96541.0,0.0041067]
[1739050322007,0.155372,96543.0,96541.0,0.0041067]
[1739050322229,0.155372,96543.0,96541.0,0.0021067]
[1739050322413,0.155372,96543.0,96542.0,0.004]
[1739050323248,0.155369,96544.0,96542.0,0.004]
[1739050323654,0.207153,96547.0,96542.0,0.004]
[1739050324190,0.15537,96544.0,96542.0,0.009]
[1739050324364,0.15537,96544.0,96542.0,0.005]
[1739050324781,0.15537,96544.0,96542.0,0.008]
[1739050324975,0.15537,96544.0,96541.0,0.0001067]
[1739050325178,0.15537,96544.0,96541.0,0.0051067]
[1739050325378,0.155371,96543.0,96542.0,0.004]
[1739050326339,0.207157,96545.0,96542.0,0.004]
[1739050326467,0.155367,96546.0,96542.0,0.004]
[1739050326677,0.155367,96546.0,96541.0,0.0001067]
[1739050327112,0.305372,96542.0,96541.0,0.0041067]
[1739050327334,0.305372,96542.0,96541.0,0.0001067]
[1739050328234,0.305372,96542.0,96541.0,0.0051067]
[1739050328544,0.305372,96542.0,96541.0,0.0071067]
[1739050330437,0.305372,96542.0,96541.0,0.0091067]
[1739050331943,0.305372,96542.0,96541.0,0.0071067]
[1739050332424,0.305372,96542.0,96541.0,0.0081067]
[1739050332822,0.305372,96542.0,96541.0,0.0071067]
[1739050333474,0.305372,96542.0,96541.0,0.0001067]
[1739050333707,0.305372,96542.0,96541.0,0.0011067]
[1739050334416,0.305372,96542.0,96541.0,0.0021067]
[1739050340928,0.305372,96542.0,96541.0,0.0011067]
[1739050341133,0.305372,96542.0,96541.0,0.0001067]
[1739050341993,0.15,96543.0,96541.0,0.0011067]
[1739050343380,0.155384,96535.0,96534.0,0.03521856]
[1739050344131,0.305384,96535.0,96534.0,0.03521856]
[1739050344566,0.305385,96534.0,96533.0,0.0001067]
[1739050345173,0.312825,96534.0,96533.0,0.0001067]
[1739050345389,0.49552865,96534.0,96533.0,0.0001067]
[1739050345601,0.54883872,96534.0,96533.0,0.0001067]
[1739050345807,0.54883872,96534.0,96533.0,0.0031067]
[1739050346016,0.65134237,96534.0,96533.0,0.0061067]
[1739050346861,0.54883872,96534.0,96533.0,0.0061067]
[1739050347166,0.67183872,96534.0,96533.0,0.0001067]
[1739050347376,0.67683872,96534.0,96533.0,0.0001067]
[1739050347588,0.67683872,96534.0,96533.0,0.0021067]
[1739050347783,0.67183872,96534.0,96533.0,0.0001067]
[1739050348231,0.67583872,96534.0,96533.0,0.0001067]
[1739050348653,0.68483872,96534.0,96533.0,0.0001067]
[1739050349512,0.78734237,96534.0,96533.0,0.0001067]
[1739050349927,0.80571717,96534.0,96533.0,0.0001067]
[1739050350310,0.81071717,96534.0,96533.0,0.0001067]
[1739050351217,1.13091717,96534.0,96533.0,0.0001067]
[1739050351438,1.02841352,96534.0,96533.0,0.0001067]
[1739050359366,1.18357352,96534.0,96533.0,0.0001067]
[1739050359669,1.02818852,96534.0,96527.0,0.0001067]
[1739050359823,0.30539,96531.0,96527.0,0.0001067]
[1739050360013,0.40789365,96531.0,96527.0,0.0001067]
[1739050360213,0.155395,96528.0,96527.0,0.0001067]
[1739050360461,0.155395,96528.0,96519.0,1e-07]
[1739050360462,0.305408,96520.0,96519.0,1e-07]
[1739050360631,0.40791165,96520.0,96519.0,1e-07]
[1739050361031,0.43091165,96520.0,96519.0,1e-07]
[1739050361210,0.5334153,96520.0,96519.0,1e-07]
[1739050361416,0.5808153,96520.0,96519.0,1e-07]
[1739050362823,0.5828153,96520.0,96519.0,1e-07]
[1739050363128,0.5838153,96520.0,96519.0,1e-07]
[1739050363377,0.5818153,96520.0,96519.0,1e-07]
[1739050363760,0.5978153,96520.0,96519.0,0.0020001]
[1739050365524,0.62034783,96520.0,96519.0,0.0020001]
[1739050365912,0.62575348,96520.0,96519.0,0.0020001]
[1739050366140,0.96689503,96520.0,96519.0,0.0020001]
[1739050367725,0.91949503,96520.0,96519.0,0.0020001]
[1739050371477,0.92693503,96520.0,96519.0,0.0020001]
[1739050373698,0.173,96519.0,96505.0,0.03205847]
[1739050373903,0.30543,96506.0,96505.0,0.03210383]
[1739050375728,0.30543,96506.0,96505.0,0.03310383]
[1739050375904,0.30843,96506.0,96505.0,0.03310383]
[1739050376298,0.30843,96506.0,96505.0,0.03210383]
[1739050376739,0.31343,96506.0,96505.0,0.03210383]
[1739050379641,0.33616622,96506.0,96505.0,0.03210383]
[1739050380213,0.33616622,96506.0,96505.0,0.03221053]
[1739050381054,0.43195274,96506.0,96505.0,0.03221053]
[1739050391345,0.43939274,96506.0,96505.0,0.03221053]
[1739050391523,0.43961702,96506.0,96505.0,0.03221053]
[1739050391722,0.3363905,96506.0,96505.0,0.03221053]
[1739050391921,0.1863905,96506.0,96505.0,0.03221053]
[1739050392292,0.3363905,96506.0,96505.0,0.03221053]
[1739050392498,0.1809605,96506.0,96505.0,0.08081053]
[1739050392605,0.0229605,96506.0,96505.0,0.08081053]
[1739050392815,0.0279605,96506.0,96505.0,0.08081053]
[1739050393073,0.0309605,96506.0,96505.0,0.08081053]
[1739050393254,0.0259605,96506.0,96505.0,0.08081053]
[1739050393448,0.207231,96511.0,96506.0,0.0803]
[1739050393679,0.02331612,96511.0,96506.0,0.0803]
[1739050394055,0.155421,96512.0,96508.0,0.0803]
[1739050394270,0.00744,96514.0,96508.0,0.0803]
[1739050394474,0.155424,96510.0,96508.0,0.0803]
[1739050394630,0.155419,96513.0,96508.0,0.0803]
[1739050394830,0.155425,96510.0,96508.0,0.0803]
[1739050395053,0.207228,96512.0,96508.0,0.0803]
[1739050395261,0.155419,96513.0,96508.0,0.0803]
[1739050395598,0.15,96510.0,96508.0,0.0803]
[1739050396571,0.001,96511.0,96508.0,0.0803]
[1739050396987,0.001,96510.0,96508.0,0.0803]
[1739050397565,0.003,96512.0,96509.0,0.0486]
[1739050397767,0.17315103,96514.0,96510.0,0.0803]
[1739050398864,0.003,96512.0,96510.0,0.0803]
[1739050399255,0.17315103,96514.0,96510.0,0.0803]
[1739050399516,0.001,96511.0,96510.0,0.0803]
[1739050399880,0.17715103,96514.0,96510.0,0.0803]
[1739050400073,0.17715103,96514.0,96510.0,0.03508635]
[1739050400271,0.002,96512.0,96510.0,0.03508635]
[1739050400737,0.001,96511.0,96510.0,0.03508635]
[1739050401112,0.003,96511.0,96510.0,0.03508635]
[1739050403189,0.004,96511.0,96510.0,0.03508635]
[1739050405864,0.004,96511.0,96510.0,0.05110603]
[1739050406581,0.003,96511.0,96510.0,0.05110603]
[1739050406947,0.0282975,96517.0,96510.0,0.05410603]
[1739050407224,0.15,96518.0,96510.0,0.03808635]
[1739050407434,0.22570826,96520.0,96510.0,0.03808635]
[1739050407638,0.15,96518.0,96510.0,0.04308635]
[1739050407856,0.15,96518.0,96510.0,0.04008635]
[1739050408138,0.001,96511.0,96510.0,0.04608635]
[1739050408542,0.15,96518.0,96510.0,0.04008635]
[1739050408741,0.15,96518.0,96510.0,0.03808635]
[1739050409094,0.155411,96518.0,96511.0,0.0827]
[1739050410114,0.155411,96518.0,96511.0,0.0857]
[1739050410334,0.22570826,96520.0,96511.0,0.0857]
[1739050410335,0.07570826,96520.0,96511.0,0.0857]
[1739050410537,0.22570826,96520.0,96511.0,0.0857]
[1739050411152,0.25422264,96520.0,96511.0,0.0887]
[1739050411565,0.40963064,96520.0,96511.0,0.0857]
[1739050411742,0.40963064,96520.0,96511.0,0.0827]
[1739050412002,0.33392238,96520.0,96511.0,0.0867]
[1739050413061,0.15,96518.0,96511.0,0.0867]
[1739050413858,0.15,96518.0,96511.0,0.0847]
[1739050414265,0.15,96518.0,96511.0,0.0877]
[1739050414467,0.155411,96518.0,96511.0,0.0877]
[1739050414688,0.155411,96518.0,96511.0,0.0857]
[1739050415085,0.155411,96518.0,96511.0,0.0887]
[1739050416342,0.17851438,96520.0,96511.0,0.0887]
[1739050416582,0.17873846,96520.0,96511.0,0.0887]
[1739050416939,0.15,96518.0,96511.0,0.0887]
[1739050417324,0.15,96518.0,96511.0,0.0857]
[1739050417525,0.15,96518.0,96511.0,0.0877]
[1739050418123,0.15,96518.0,96511.0,0.18820365]
[1739050418328,0.02873846,96520.0,96511.0,0.18520365]
[1739050418329,0.17873846,96520.0,96511.0,0.18520365]
[1739050418595,0.17873846,96520.0,96511.0,0.18820365]
[1739050418883,0.17873846,96520.0,96511.0,0.19020365]
[1739050419082,0.17873846,96520.0,96511.0,0.18820365]
[1739050419406,0.33414646,96520.0,96511.0,0.19120365]
[1739050419760,0.33414646,96520.0,96511.0,0.18820365]
[1739050419988,0.33414646,96520.0,96511.0,0.19020365]
[1739050420185,0.15,96518.0,96511.0,0.19020365]
[1739050421011,0.15,96518.0,96511.0,0.19220365]
[1739050421534,0.33414646,96520.0,96511.0,0.19220365]
[1739050421709,0.15,96518.0,96511.0,0.19020365]
[1739050423086,0.02873846,96520.0,96511.0,0.19320365]
[1739050424034,0.17873846,96520.0,96511.0,0.19020365]
[1739050424209,0.33414646,96520.0,96511.0,0.18720365]
[1739050424418,0.33414646,96520.0,96511.0,0.18920365]
[1739050425729,0.17873846,96520.0,96511.0,0.18920365]
[1739050426311,0.33414746,96520.0,96511.0,0.18920365]
[1739050427317,0.15,96518.0,96511.0,0.18920365]
[1739050428156,0.15,96518.0,96511.0,0.18720365]
[1739050428695,0.15,96519.0,96511.0,0.19020365]
[1739050429087,0.15,96519.0,96511.0,0.18820365]
[1739050429494,0.15,96519.0,96511.0,0.19120365]
[1739050429812,0.15,96519.0,96511.0,0.18820365]
[1739050430240,0.00022408,96518.0,96511.0,0.18820365]
[1739050430374,0.00022408,96518.0,96511.0,0.18520365]
[1739050430781,0.00022408,96518.0,96511.0,0.18920365]
[1739050431449,0.00022408,96518.0,96511.0,0.18720365]
[1739050431824,0.00022408,96518.0,96511.0,0.19020365]
[1739050432030,0.00022408,96518.0,96511.0,0.18820365]
[1739050432270,0.00022408,96518.0,96511.0,0.19120365]
[1739050442881,0.15022408,96518.0,96511.0,0.19120365]
[1739050443108,0.00022408,96518.0,96511.0,0.006]
[1739050443230,0.155421,96512.0,96511.0,0.006]
[1739050443883,0.15022408,96518.0,96511.0,0.006]
[1739050444110,0.155419,96513.0,96511.0,0.003]
[1739050444301,0.155419,96513.0,96511.0,0.008]
[1739050444624,0.155418,96514.0,96511.0,0.005]
[1739050444946,0.155418,96514.0,96511.0,0.011]
[1739050445298,0.155418,96514.0,96511.0,0.005]
[1739050445709,0.155418,96514.0,96511.0,0.01]
[1739050446156,0.155418,96514.0,96511.0,0.005]
[1739050446487,0.155416,96515.0,96511.0,0.005]
[1739050446687,0.155416,96515.0,96511.0,0.01]
[1739050447117,0.155416,96515.0,96511.0,0.005]
[1739050447347,0.155416,96515.0,96511.0,0.009]
[1739050447544,0.155416,96515.0,96511.0,0.004]
[1739050447981,0.155416,96515.0,96511.0,0.012]
[1739050450050,0.155418,96514.0,96511.0,0.012]
[1739050450897,0.155418,96514.0,96511.0,0.008]
[1739050451282,0.15,96516.0,96510.0,0.0001067]
[1739050451482,0.01943315,96513.0,96511.0,0.004]
[1739050451868,0.01943315,96513.0,96511.0,0.009]
[1739050452269,0.01943315,96513.0,96511.0,0.004]
[1739050452465,0.01943315,96513.0,96511.0,0.006]
[1739050452654,0.01943315,96513.0,96511.0,0.002]
[1739050453009,0.01943315,96513.0,96511.0,0.004]
[1739050453617,0.01943315,96512.0,96511.0,0.006]
[1739050454377,0.01943315,96512.0,96511.0,0.004]
[1739050455385,0.01943315,96512.0,96511.0,0.007]
[1739050456305,0.01943315,96512.0,96511.0,0.003]
[1739050456517,0.01443315,96512.0,96511.0,0.006]
[1739050462955,0.01443315,96512.0,96511.0,0.003]
[1739050463158,0.01443315,96512.0,96511.0,0.006]
[1739050464091,0.01443315,96512.0,96511.0,0.003]
[1739050464843,0.01443315,96512.0,96511.0,0.006]
[1739050465908,0.01443315,96512.0,96511.0,0.0061067]
[1739050466272,0.01465723,96512.0,96511.0,0.0061067]
[1739050466479,0.01465723,96512.0,96511.0,0.0031067]
[1739050467238,0.01465723,96512.0,96511.0,0.0061067]
[1739050468907,0.01465723,96512.0,96511.0,0.0031067]
[1739050469324,0.17007823,96512.0,96511.0,0.0061067]
[1739050470124,0.17007823,96512.0,96511.0,0.0031067]
[1739050470349,0.17007823,96512.0,96511.0,0.0061067]
[1739050471212,0.01465723,96512.0,96511.0,0.0061067]
[1739050471553,0.01465723,96512.0,96511.0,0.02212521]
[1739050471753,0.31465723,96512.0,96511.0,0.02212521]
[1739050471961,0.31465723,96512.0,96511.0,0.0061067]
[1739050476707,0.47007823,96512.0,96511.0,0.0061067]
[1739050478132,0.72258188,96512.0,96511.0,0.0061067]
[1739050478806,0.72258188,96512.0,96511.0,0.0031067]
[1739050479770,0.72258188,96512.0,96511.0,0.0001067]
[1739050479899,0.70814873,96512.0,96511.0,0.0001067]
[1739050480111,0.70914873,96512.0,96511.0,0.0001067]
[1739050480306,0.7285809,96512.0,96511.0,0.0001067]
[1739050481828,0.83108455,96512.0,96511.0,0.0001067]
[1739050483069,0.7285809,96512.0,96511.0,0.0001067]
[1739050485350,0.70914873,96512.0,96511.0,0.0001067]
[1739050485748,0.61408508,96512.0,96511.0,0.0001067]
[1739050490621,0.60664508,96512.0,96511.0,0.0001067]
[1739050490826,0.61408508,96512.0,96511.0,0.0001067]
[1739050498512,0.45122408,96512.0,96511.0,0.0001067]
[1739050498786,0.45122408,96512.0,96511.0,0.0484067]
[1739050499529,0.45022408,96512.0,96511.0,0.0484067]
[1739050499943,0.45022408,96512.0,96511.0,0.0534067]
[1739050500953,0.45022408,96512.0,96511.0,0.0514067]
[1739050501399,0.30022408,96512.0,96511.0,0.0514067]
[1739050501778,0.30022408,96512.0,96511.0,0.07042521]
[1739050501986,0.13408235,96512.0,96511.0,0.07042521]
[1739050502193,0.13408235,96512.0,96511.0,0.12206159]
[1739050502390,0.13408235,96512.0,96511.0,0.06742521]
[1739050502598,0.13408235,96512.0,96511.0,0.21984721]
[1739050503000,0.13408235,96512.0,96511.0,0.22384721]
[1739050503240,0.13408235,96512.0,96511.0,0.32635086]
[1739050503441,0.13408235,96512.0,96511.0,0.40645086]
[1739050503974,0.13408235,96512.0,96511.0,0.4885795]
[1739050504180,0.13508235,96512.0,96511.0,0.4955795]
[1739050504681,0.13508235,96512.0,96511.0,0.4925795]
[1739050505056,0.13508235,96512.0,96511.0,0.4985795]
[1739050506309,0.13508235,96512.0,96511.0,0.41645086]
[1739050509176,0.13508235,96512.0,96511.0,0.74575086]
[1739050509432,0.13508235,96512.0,96511.0,0.43945086]
[1739050509788,0.13408235,96512.0,96511.0,0.43245086]
[1739050509964,0.13508235,96512.0,96511.0,0.97665086]
[1739050510156,0.13508235,96512.0,96511.0,1.07915451]
[1739050510320,0.13408235,96512.0,96511.0,1.07215451]
[1739050510736,0.13508235,96512.0,96511.0,1.07515451]
[1739050511089,0.13508235,96512.0,96511.0,1.08415451]
[1739050511303,0.13508235,96512.0,96511.0,1.09415451]
[1739050511652,0.13508235,96512.0,96511.0,1.10315451]
[1739050512224,0.13508235,96512.0,96511.0,1.13537324]
[1739050512553,0.02126944,96548.0,96540.0,0.201674]
[1739050512756,0.02126944,96548.0,96541.0,0.02120312]
[1739050512960,0.00022408,96555.0,96541.0,0.03718653]
[1739050514135,0.15,96554.0,96541.0,0.03718653]
[1739050514349,0.15,96554.0,96541.0,0.03615081]
[1739050515260,0.15,96554.0,96541.0,0.03718652]
[1739050515458,0.15,96554.0,96542.0,0.06247462]
[1739050515836,0.15,96554.0,96543.0,0.01598107]
[1739050516540,0.00422408,96555.0,96544.0,0.10353936]
[1739050516915,0.00022408,96555.0,96548.0,0.155362]
[1739050517139,0.00022408,96555.0,96549.0,0.10353927]
[1739050517467,0.003,96554.0,96550.0,0.02512484]
[1739050517711,0.00022408,96555.0,96551.0,0.00103561]
[1739050517839,0.00022408,96555.0,96550.0,0.10353927]
[1739050519292,0.00022408,96555.0,96550.0,0.10753927]
[1739050519644,0.00022408,96555.0,96551.0,0.00103562]
[1739050519850,0.00022408,96555.0,96551.0,0.10353927]
[1739050520071,0.00022408,96555.0,96551.0,0.10250365]
[1739050520535,0.00022408,96555.0,96552.0,0.01597055]
[1739050522208,0.00022408,96555.0,96552.0,0.01997055]
[1739050522622,0.00022408,96555.0,96552.0,0.02397055]
[1739050532999,0.00022408,96555.0,96551.0,0.08127809]
[1739050533149,0.00022408,96555.0,96547.0,0.0777]
[1739050533350,0.00022408,96555.0,96552.0,0.01498162]
[1739050533550,0.00022408,96555.0,96548.0,0.10250365]
[1739050533769,0.00022408,96555.0,96553.0,0.01498064]
[1739050533990,0.00022408,96555.0,96548.0,0.10250365]
[1739050534201,0.00022408,96555.0,96554.0,0.01497965]
[1739050534370,0.00022408,96555.0,96551.0,0.004]
[1739050534580,0.00022408,96555.0,96554.0,0.01497965]
[1739050534780,0.00022408,96555.0,96551.0,0.004]
[1739050534979,0.00022408,96555.0,96551.0,0.008]
[1739050535401,0.00022408,96555.0,96551.0,0.004]
[1739050535607,0.00022408,96555.0,96552.0,0.01498162]
[1739050535767,0.00022408,96555.0,96554.0,0.004]
[1739050536165,0.00022408,96555.0,96554.0,0.01497965]
[1739050536372,0.00022408,96555.0,96554.0,0.004]
[1739050536564,0.00022408,96555.0,96554.0,0.01897965]
[1739050536846,0.00022408,96555.0,96554.0,0.004]
[1739050537006,0.00022408,96555.0,96554.0,0.01897965]
[1739050537208,0.00022408,96555.0,96551.0,0.003]
[1739050537408,0.00022408,96555.0,96554.0,0.003]
[1739050538626,0.00022408,96555.0,96554.0,0.007]
[1739050539024,0.15557508,96555.0,96554.0,0.007]
[1739050539257,0.00022408,96555.0,96554.0,0.007]
[1739050540953,0.01964355,96555.0,96554.0,0.007]
[1739050543680,0.17499455,96555.0,96554.0,0.007]
[1739050544014,0.01964355,96555.0,96554.0,0.007]
[1739050545431,0.17499455,96555.0,96554.0,0.007]
[1739050545806,0.01964355,96555.0,96554.0,0.007]
[1739050547980,0.00022408,96555.0,96554.0,0.007]
[1739050549113,0.00022408,96555.0,96540.0,0.00842805]
[1739050549313,0.00022408,96555.0,96541.0,0.10250365]
[1739050549717,0.00022408,96555.0,96541.0,0.25787765]
[1739050550758,0.00022408,96555.0,96542.0,0.00103565]
[1739050550953,0.00022408,96555.0,96543.0,0.10250365]
[1739050552223,0.03157176,96554.0,96541.0,0.003]
[1739050552431,0.03157176,96554.0,96539.0,0.155377]
[1739050552629,0.00022408,96555.0,96545.0,0.155367]
[1739050552873,0.00022408,96555.0,96546.0,0.10353925]
[1739050553231,0.00022408,96555.0,96548.0,0.155362]
[1739050553419,0.00022408,96555.0,96549.0,0.10353925]
[1739050553632,0.00022408,96555.0,96549.0,0.10250365]
[1739050554043,0.00022408,96555.0,96551.0,0.155357]
[1739050554235,0.00022408,96555.0,96552.0,0.11852086]
[1739050555081,0.00022408,96555.0,96553.0,0.155355]
[1739050555399,0.00022408,96555.0,96554.0,0.17993921]
[1739050555993,0.00022408,96555.0,96554.0,0.33529221]
[1739050556185,0.00022408,96555.0,96554.0,0.33425665]
[1739050556404,0.00022408,96555.0,96554.0,0.17890365]
[1739050556594,0.00022408,96555.0,96554.0,0.18293921]
[1739050557304,0.00022408,96555.0,96554.0,0.18593921]
[1739050557498,0.00022408,96555.0,96554.0,0.20091886]
[1739050558907,0.00022408,96555.0,96554.0,0.1998833]
[1739050559072,0.00022408,96555.0,96554.0,0.1948833]
[1739050562048,0.00022408,96555.0,96554.0,0.1184833]
[1739050562762,0.00022408,96555.0,96554.0,0.02097965]
[1739050564174,0.00022408,96555.0,96554.0,0.006]
[1739050564579,0.01964286,96555.0,96554.0,0.02097965]
[1739050564752,0.01964286,96555.0,96554.0,0.006]
[1739050566046,0.01964286,96555.0,96554.0,0.02097965]
[1739050567795,0.01964286,96555.0,96554.0,0.12451892]
[1739050567999,0.01964286,96555.0,96554.0,0.1234833]
[1739050573042,0.01964286,96555.0,96554.0,0.12359]
[1739050580056,0.00022408,96555.0,96554.0,0.12359]
[1739050580417,0.00022408,96555.0,96554.0,0.07838918]
[1739050580612,0.00022408,96555.0,96554.0,0.09586544]
[1739050583958,0.15022408,96573.0,96554.0,0.09586544]
[1739050584160,0.00013578,96560.0,96554.0,0.09586544]
[1739050585333,0.00013578,96560.0,96554.0,0.09686544]
[1739050585536,0.00022408,96555.0,96554.0,0.09686544]
[1739050585738,0.00022408,96555.0,96554.0,0.09586544]
[1739050586102,0.00022408,96555.0,96554.0,0.09686544]
[1739050586296,0.00022408,96555.0,96554.0,0.09586544]
[1739050586695,0.00022408,96555.0,96554.0,0.09886544]
[1739050588125,0.00022408,96555.0,96554.0,0.252254]
[1739050588325,0.00022408,96555.0,96554.0,0.25421844]
[1739050588529,0.00022408,96555.0,96554.0,0.10186544]
[1739050588693,0.00022408,96555.0,96554.0,0.09886544]
[1739050589097,0.00022408,96555.0,96554.0,0.10186544]
[1739050590190,0.00022408,96555.0,96554.0,0.02358296]
[1739050601737,0.01965205,96555.0,96554.0,0.02358296]
[1739050602885,0.00022408,96555.0,96554.0,0.02358296]
[1739050608602,0.00022408,96555.0,96554.0,0.17893596]
[1739050608838,0.00022408,96555.0,96554.0,0.02358296]
[1739050610070,0.00022408,96555.0,96554.0,0.28143961]